fUSD/lending_fUSD_20240415
["ID","MTS","AMOUNT","RATE_DAILY","PERIOD"]
[322670593,1713202232179,-288.73411112,0.00019195,2]
[322670594,1713202232189,-1278.52763271,0.00019196,2]
[322670595,1713202232199,-163.38647486,0.00019196,2]
[322670596,1713202232208,-165.79,0.00019232,2]
[322670597,1713202232218,-1278.5276327,0.00019246,2]
[322670598,1713202232227,-158.48,0.00019283,2]
[322670599,1713202232238,-158.48,0.00019284,2]
[322670600,1713202232249,-158.48,0.00019286,2]
[322670601,1713202232259,-163645.79577957,0.00019293,2]
[322670602,1713202232272,-27524.0425775,0.00019293,2]
[322670603,1713202232285,-677.45377569,0.00019293,2]
[322670604,1713202232297,-280.83854349,0.00019293,2]
[322670605,1713202232319,-479.84771151,0.00019293,2]
[322670606,1713202232339,-5142.07172595,0.00019293,2]
[322670607,1713202232359,-2418.1409,0.00019293,2]
[322670608,1713202232371,-8144.92980028,0.00019293,2]
[322670609,1713202232466,-4604.01453447,0.00019293,2]
[322670610,1713202232478,-10732.09241318,0.00019293,2]
[322670611,1713202232490,-2144.45724868,0.00019293,2]
[322670612,1713202232502,-1934.24120179,0.00019293,2]
[322670613,1713202232529,-3107.33641854,0.00019293,2]
[322670614,1713202232542,-284.49703418,0.00019293,2]
[322670631,1713202238004,-632.5046416,0.00019293,2]
[322670634,1713202238022,-787.73193429,0.00019293,2]
[322670637,1713202238040,-4269.6320034,0.00019293,2]
[322670650,1713202238170,-17226.86510226,0.00019293,2]
[322670653,1713202238191,-1442.12085643,0.00019293,2]
[322670674,1713202238393,-12374.99971629,0.00019293,2]
[322670677,1713202238411,-7203.50000972,0.00019293,2]
[322670678,1713202238432,-270566.72322422,0.00019293,2]
[322670679,1713202238446,-2557.62,0.00019294,2]
[322670680,1713202238459,-1624.26,0.00019294,2]
[322670681,1713202238472,-2557.62,0.00019294,2]
[322670682,1713202238486,-1624.26,0.00019294,2]
[322670683,1713202238499,-7062.11,0.00019294,2]
[322670684,1713202238512,-7062.11,0.00019294,2]
[322670685,1713202238525,-7774.78,0.00019294,2]
[322670686,1713202238538,-7774.78,0.00019294,2]
[322670687,1713202238551,-1762.56,0.00019294,2]
[322670688,1713202238563,-1762.56,0.00019294,2]
[322670689,1713202238576,-733.26,0.00019294,2]
[322670690,1713202238590,-733.26,0.00019294,2]
[322670691,1713202238602,-6537.37,0.00019294,2]
[322670692,1713202238615,-4910.14,0.00019294,2]
[322670693,1713202238628,-4910.14,0.00019294,2]
[322670694,1713202238641,-6537.37,0.00019294,2]
[322670695,1713202238654,-6211.81,0.00019294,2]
[322670696,1713202238667,-6211.81,0.00019294,2]
[322670697,1713202238683,-18800.66,0.00019294,2]
[322670698,1713202238700,-18800.66,0.00019294,2]
[322670699,1713202238714,-4108.19,0.00019294,2]
[322670700,1713202238727,-4108.19,0.00019294,2]
[322670701,1713202238739,-2542.8,0.00019294,2]
[322670702,1713202238752,-2542.8,0.00019294,2]
[322670703,1713202238764,-500.0,0.00019294,2]
[322670704,1713202238776,-500.0,0.00019294,2]
[322670705,1713202238789,-48699.63,0.00019294,2]
[322670706,1713202238802,-48699.63,0.00019294,2]
[322670707,1713202238815,-18991.52,0.00019294,2]
[322670708,1713202238827,-18991.52,0.00019294,2]
[322670709,1713202238841,-8494.29,0.00019294,2]
[322670710,1713202238853,-8494.29,0.00019294,2]
[322670711,1713202238865,-500.0,0.00019294,2]
[322670712,1713202238879,-500.0,0.00019294,2]
[322670713,1713202238891,-500.0,0.00019294,2]
[322670714,1713202238904,-500.0,0.00019294,2]
[322670715,1713202238916,-800.84,0.00019294,2]
[322670716,1713202238932,-2149.26,0.00019294,2]
[322670717,1713202238944,-800.84,0.00019294,2]
[322670718,1713202238958,-500.0,0.00019294,2]
[322670719,1713202238970,-500.0,0.00019294,2]
[322670720,1713202238983,-2149.26,0.00019294,2]
[322670721,1713202238996,-554.4,0.00019294,2]
[322670722,1713202239010,-554.4,0.00019294,2]
[322670723,1713202239024,-500.0,0.00019294,2]
[322670724,1713202239037,-1057.81,0.00019294,2]
[322670725,1713202239049,-1057.81,0.00019294,2]
[322670726,1713202239062,-500.0,0.00019294,2]
[322670727,1713202239075,-500.0,0.00019294,2]
[322670728,1713202239087,-500.0,0.00019294,2]
[322670729,1713202239101,-3765.66,0.00019294,2]
[322670730,1713202239114,-3765.66,0.00019294,2]
[322670731,1713202239128,-12520.12,0.00019294,2]
[322670732,1713202239143,-500.0,0.00019294,2]
[322670733,1713202239156,-12520.12,0.00019294,2]
[322670734,1713202239175,-500.0,0.00019294,2]
[322670735,1713202239189,-500.0,0.00019294,2]
[322670736,1713202239204,-500.0,0.00019294,2]
[322670737,1713202239217,-1477.98,0.00019294,2]
[322670738,1713202239231,-1477.98,0.00019294,2]
[322670739,1713202239244,-500.0,0.00019294,2]
[322670740,1713202239257,-7470.14,0.00019294,2]
[322670741,1713202239270,-500.0,0.00019294,2]
[322670742,1713202239282,-7470.14,0.00019294,2]
[322670744,1713202239295,-500.0,0.00019294,2]
[322670746,1713202239307,-3813.6,0.00019294,2]
[322670749,1713202239320,-500.0,0.00019294,2]
[322670751,1713202239332,-3813.6,0.00019294,2]
[322670753,1713202239345,-917.08,0.00019294,2]
[322670755,1713202239358,-917.08,0.00019294,2]
[322670758,1713202239370,-3495.43,0.00019294,2]
[322670760,1713202239383,-3495.43,0.00019294,2]
[322670762,1713202239395,-1652.52,0.00019294,2]
[322670764,1713202239407,-1652.52,0.00019294,2]
[322670767,1713202239420,-500.0,0.00019294,2]
[322670768,1713202239440,-500.0,0.00019294,2]
[322670769,1713202239454,-500.0,0.00019294,2]
[322670770,1713202239466,-500.0,0.00019294,2]
[322670772,1713202239480,-499.99,0.00019295,2]
[322670774,1713202239493,-2557.62,0.00019295,2]
[322670777,1713202239506,-1624.26,0.00019295,2]
[322670779,1713202239519,-7062.11,0.00019295,2]
[322670782,1713202239531,-7774.78,0.00019295,2]
[322670784,1713202239544,-1762.56,0.00019295,2]
[322670786,1713202239557,-733.26,0.00019295,2]
[322670788,1713202239570,-4910.14,0.00019295,2]
[322670791,1713202239582,-6537.37,0.00019295,2]
[322670793,1713202239596,-1278.5276327,0.00019295,2]
[322670795,1713202239608,-6211.81,0.00019295,2]
[322670797,1713202239622,-18800.66,0.00019295,2]
[322670800,1713202239634,-4108.19,0.00019295,2]
[322670802,1713202239647,-2542.8,0.00019295,2]
[322670804,1713202239660,-500.0,0.00019295,2]
[322670806,1713202239679,-48699.63,0.00019295,2]
[322670809,1713202239693,-18991.52,0.00019295,2]
[322670810,1713202239707,-8494.29,0.00019295,2]
[322670811,1713202239719,-500.0,0.00019295,2]
[322670812,1713202239732,-500.0,0.00019295,2]
[322670813,1713202239744,-800.84,0.00019295,2]
[322670814,1713202239757,-500.0,0.00019295,2]
[322670815,1713202239770,-2149.26,0.00019295,2]
[322670816,1713202239784,-554.4,0.00019295,2]
[322670817,1713202239797,-1057.81,0.00019295,2]
[322670818,1713202239810,-500.0,0.00019295,2]
[322670819,1713202239822,-213.96172675,0.00019295,2]
[322670820,1713202239836,-3765.66,0.00019295,2]
[322670821,1713202239849,-12520.12,0.00019295,2]
[322670822,1713202239862,-500.0,0.00019295,2]
[322670823,1713202239875,-500.0,0.00019295,2]
[322670824,1713202239888,-1477.98,0.00019295,2]
[322670825,1713202239901,-500.0,0.00019295,2]
[322670826,1713202239914,-7470.14,0.00019295,2]
[322670827,1713202239931,-517.38677274,0.00019295,2]
[322670828,1713202239945,-3813.6,0.00019295,2]
[322670829,1713202239957,-917.08,0.00019295,2]
[322670830,1713202239970,-3495.43,0.00019295,2]
[322670831,1713202239983,-1652.52,0.00019295,2]
[322670832,1713202239996,-500.0,0.00019295,2]
[322670833,1713202240009,-245000.0,0.00019296,2]
[322670834,1713202240021,-20150.3482,0.00019296,2]
[322670835,1713202240034,-1576.3581,0.00019296,2]
[322670836,1713202240047,-100000.0,0.00019296,2]
[322670837,1713202240059,-1000.0,0.00019296,2]
[322670838,1713202240072,-1493.43313691,0.00019297,2]
[322670839,1713202240085,-156.3176798,0.00019297,3]
[322670840,1713202240098,-152.57,0.0001931,2]
[322670841,1713202240114,-406.56149967,0.00019359,2]
[322670842,1713202240126,-158.48,0.00019385,2]
[322670843,1713202240138,-2557.62,0.00019394,2]
[322670844,1713202240150,-1624.26,0.00019394,2]
[322670845,1713202240162,-2557.62,0.00019394,2]
[322670846,1713202240178,-1624.26,0.00019394,2]
[322670847,1713202240191,-2557.62,0.00019394,2]
[322670848,1713202240203,-1624.26,0.00019394,2]
[322670849,1713202240216,-7062.11,0.00019394,2]
[322670850,1713202240228,-7062.11,0.00019394,2]
[322670851,1713202240241,-7062.11,0.00019394,2]
[322670852,1713202240253,-7774.78,0.00019394,2]
[322670853,1713202240265,-7774.78,0.00019394,2]
[322670854,1713202240277,-1762.56,0.00019394,2]
[322670855,1713202240291,-1762.56,0.00019394,2]
[322670856,1713202240303,-1762.56,0.00019394,2]
[322670857,1713202240315,-7774.78,0.00019394,2]
[322670858,1713202240328,-733.26,0.00019394,2]
[322670859,1713202240342,-733.26,0.00019394,2]
[322670860,1713202240362,-733.26,0.00019394,2]
[322670861,1713202240376,-4910.14,0.00019394,2]
[322670862,1713202240391,-6537.37,0.00019394,2]
[322670863,1713202240406,-4910.14,0.00019394,2]
[322670864,1713202240420,-6537.37,0.00019394,2]
[322670865,1713202240441,-4910.14,0.00019394,2]
[322670866,1713202240456,-6537.37,0.00019394,2]
[322670867,1713202240470,-6211.81,0.00019394,2]
[322670868,1713202240484,-6211.81,0.00019394,2]
[322670869,1713202240497,-6211.81,0.00019394,2]
[322670870,1713202240510,-18800.66,0.00019394,2]
[322670871,1713202240523,-18800.66,0.00019394,2]
[322670872,1713202240536,-18800.66,0.00019394,2]
[322670873,1713202240549,-4108.19,0.00019394,2]
[322670874,1713202240562,-4108.19,0.00019394,2]
[322670875,1713202240574,-4108.19,0.00019394,2]
[322670876,1713202240586,-2542.8,0.00019394,2]
[322670877,1713202240598,-2542.8,0.00019394,2]
[322670878,1713202240610,-2542.8,0.00019394,2]
[322670879,1713202240622,-500.0,0.00019394,2]
[322670880,1713202240635,-500.0,0.00019394,2]
[322670881,1713202240648,-500.0,0.00019394,2]
[322670882,1713202240659,-48699.63,0.00019394,2]
[322670883,1713202240671,-48699.63,0.00019394,2]
[322670884,1713202240686,-48699.63,0.00019394,2]
[322670885,1713202240699,-18991.52,0.00019394,2]
[322670886,1713202240711,-18991.52,0.00019394,2]
[322670887,1713202240723,-18991.52,0.00019394,2]
[322670888,1713202240734,-8494.29,0.00019394,2]
[322670889,1713202240747,-8494.29,0.00019394,2]
[322670890,1713202240758,-8494.29,0.00019394,2]
[322670891,1713202240770,-500.0,0.00019394,2]
[322670892,1713202240782,-500.0,0.00019394,2]
[322670893,1713202240793,-500.0,0.00019394,2]
[322670894,1713202240805,-500.0,0.00019394,2]
[322670895,1713202240817,-500.0,0.00019394,2]
[322670896,1713202240829,-800.84,0.00019394,2]
[322670897,1713202240842,-569.32772063,0.00019394,2]
[322670898,1713202240855,-800.84,0.00019394,2]
[322670899,1713202240868,-800.84,0.00019394,2]
[322670900,1713202240881,-500.0,0.00019394,2]
[322670901,1713202240894,-500.0,0.00019394,2]
[322670902,1713202240907,-500.0,0.00019394,2]
[322670903,1713202240919,-2149.26,0.00019394,2]
[322670904,1713202240936,-2149.26,0.00019394,2]
[322670905,1713202240948,-2149.26,0.00019394,2]
[322670906,1713202240961,-554.4,0.00019394,2]
[322670907,1713202240973,-554.4,0.00019394,2]
[322670908,1713202240986,-554.4,0.00019394,2]
[322670909,1713202240999,-1057.81,0.00019394,2]
[322670910,1713202241012,-500.0,0.00019394,2]
[322670911,1713202241026,-1057.81,0.00019394,2]
[322670912,1713202241040,-500.0,0.00019394,2]
[322670913,1713202241053,-1057.81,0.00019394,2]
[322670914,1713202241066,-500.0,0.00019394,2]
[322670915,1713202241079,-3765.66,0.00019394,2]
[322670916,1713202241092,-3765.66,0.00019394,2]
[322670917,1713202241105,-3765.66,0.00019394,2]
[322670918,1713202241118,-12520.12,0.00019394,2]
[322670919,1713202241131,-500.0,0.00019394,2]
[322670920,1713202241145,-12520.12,0.00019394,2]
[322670921,1713202241158,-500.0,0.00019394,2]
[322670922,1713202241171,-12520.12,0.00019394,2]
[322670923,1713202241192,-500.0,0.00019394,2]
[322670924,1713202241205,-500.0,0.00019394,2]
[322670925,1713202241218,-500.0,0.00019394,2]
[322670926,1713202241230,-500.0,0.00019394,2]
[322670927,1713202241242,-1477.98,0.00019394,2]
[322670928,1713202241254,-1477.98,0.00019394,2]
[322670929,1713202241265,-1477.98,0.00019394,2]
[322670930,1713202241277,-500.0,0.00019394,2]
[322670931,1713202241288,-500.0,0.00019394,2]
[322670932,1713202241299,-7470.14,0.00019394,2]
[322670933,1713202241311,-500.0,0.00019394,2]
[322670934,1713202241322,-7470.14,0.00019394,2]
[322670935,1713202241335,-7470.14,0.00019394,2]
[322670936,1713202241347,-3813.6,0.00019394,2]
[322670937,1713202241962,-3813.6,0.00019394,2]
[322670938,1713202241994,-3813.6,0.00019394,2]
[322670939,1713202242008,-917.08,0.00019394,2]
[322670940,1713202242017,-917.08,0.00019394,2]
[322670941,1713202242027,-917.08,0.00019394,2]
[322670942,1713202242037,-3495.43,0.00019394,2]
[322670943,1713202242046,-3495.43,0.00019394,2]
[322670944,1713202242055,-1652.52,0.00019394,2]
[322670945,1713202242066,-3495.43,0.00019394,2]
[322670946,1713202242075,-1652.52,0.00019394,2]
[322670947,1713202242084,-1652.52,0.00019394,2]
[322670948,1713202242094,-500.0,0.00019394,2]
[322670949,1713202242103,-500.0,0.00019394,2]
[322670950,1713202242113,-500.0,0.00019394,2]
[322670951,1713202242123,-4503.2402717,0.00019395,2]
[322670952,1713202242132,-10771.79,0.00019395,2]
[322670953,1713202242142,-10771.79,0.00019395,2]
[322670954,1713202242151,-9975.56,0.00019395,2]
[322670955,1713202242161,-4675.30053922,0.00019395,2]
[322670956,1713202242226,-389.465906,0.00019295,2]
[322670957,1713202242238,-110.534094,0.00019295,2]
[322670958,1713202242247,-5300.25946078,0.00019395,2]
[322670959,1713202242257,-13.09628296,0.00019395,2]
[322671041,1713202242725,-500.0,0.00019394,2]
[322671043,1713202242736,-500.0,0.00019394,2]
[322671045,1713202242746,-850.98667488,0.00019395,2]
[322671048,1713202242761,-913.24332144,0.00019395,2]
[322671050,1713202242774,-19277.78372072,0.00019395,2]
[322671052,1713202242787,-142.59356178,0.00019395,2]
[322671056,1713202242825,-20912.51643822,0.00019395,2]
[322671058,1713202242835,-9285.62,0.00019395,2]
[322671060,1713202242844,-9285.62,0.00019395,2]
[322671061,1713202242855,-500.0,0.00019395,2]
[322671063,1713202242868,-500.0,0.00019395,2]
[322671065,1713202242880,-4777.82,0.00019395,2]
[322671067,1713202242891,-4777.82,0.00019395,2]
[322671069,1713202242902,-500.0,0.00019395,2]
[322671071,1713202242911,-500.0,0.00019395,2]
[322671073,1713202242921,-87034.96,0.00019395,2]
[322671075,1713202242938,-87034.96,0.00019395,2]
[322671076,1713202242948,-5283.96,0.00019395,2]
[322671077,1713202242958,-5283.96,0.00019395,2]
[322671078,1713202242968,-7796.46,0.00019395,2]
[322671079,1713202242978,-7796.46,0.00019395,2]
[322671080,1713202242988,-5420.2,0.00019395,2]
[322671081,1713202242997,-5420.2,0.00019395,2]
[322671082,1713202243007,-1582.98,0.00019395,2]
[322671083,1713202243017,-1582.98,0.00019395,2]
[322671084,1713202243026,-7296.15,0.00019395,2]
[322671085,1713202243037,-7296.15,0.00019395,2]
[322671086,1713202243046,-10215.32,0.00019395,2]
[322671087,1713202243056,-10215.32,0.00019395,2]
[322671088,1713202243066,-3135.55,0.00019395,2]
[322671089,1713202243075,-3135.55,0.00019395,2]
[322671091,1713202243084,-2434.69,0.00019395,2]
[322671093,1713202243094,-2434.69,0.00019395,2]
[322671095,1713202243103,-4699.08,0.00019395,2]
[322671097,1713202243112,-4699.08,0.00019395,2]
[322671099,1713202243121,-35572.81,0.00019395,2]
[322671101,1713202243131,-35572.81,0.00019395,2]
[322671103,1713202243140,-7642.91,0.00019395,2]
[322671105,1713202243150,-7642.91,0.00019395,2]
[322671107,1713202243159,-2072.58,0.00019395,2]
[322671109,1713202243168,-2072.58,0.00019395,2]
[322671111,1713202243183,-8610.78,0.00019395,2]
[322671113,1713202243192,-8610.78,0.00019395,2]
[322671115,1713202243201,-500.0,0.00019395,2]
[322671118,1713202243210,-500.0,0.00019395,2]
[322671121,1713202243220,-5182.7,0.00019395,2]
[322671124,1713202243229,-5182.7,0.00019395,2]
[322671128,1713202243239,-385.90671913,0.00019395,2]
[322671133,1713202243248,-13298.09,0.00019395,2]
[322671137,1713202243258,-13298.09,0.00019395,2]
[322671141,1713202243267,-6808.28,0.00019395,2]
[322671144,1713202243277,-6808.28,0.00019395,2]
[322671147,1713202243286,-3367.52,0.00019395,2]
[322671150,1713202243296,-3367.52,0.00019395,2]
[322671153,1713202243305,-2557.62,0.00019396,2]
[322671156,1713202243314,-1624.26,0.00019396,2]
[322671159,1713202243324,-2557.62,0.00019396,2]
[322671162,1713202243333,-1624.26,0.00019396,2]
[322671164,1713202243342,-7062.11,0.00019396,2]
[322671167,1713202243352,-7062.11,0.00019396,2]
[322671170,1713202243361,-1762.56,0.00019396,2]
[322671172,1713202243370,-7774.78,0.00019396,2]
[322671174,1713202243379,-1762.56,0.00019396,2]
[322671176,1713202243388,-7774.78,0.00019396,2]
[322671178,1713202243397,-733.26,0.00019396,2]
[322671180,1713202243406,-733.26,0.00019396,2]
[322671182,1713202243416,-4910.14,0.00019396,2]
[322671184,1713202243431,-6537.37,0.00019396,2]
[322671187,1713202243441,-4910.14,0.00019396,2]
[322671189,1713202243450,-6537.37,0.00019396,2]
[322671191,1713202243459,-6211.81,0.00019396,2]
[322671193,1713202243468,-6211.81,0.00019396,2]
[322671195,1713202243477,-18800.66,0.00019396,2]
[322671197,1713202243486,-18800.66,0.00019396,2]
[322671199,1713202243495,-4108.19,0.00019396,2]
[322671201,1713202243504,-4108.19,0.00019396,2]
[322671203,1713202243513,-2542.8,0.00019396,2]
[322671205,1713202243522,-2542.8,0.00019396,2]
[322671207,1713202243531,-500.0,0.00019396,2]
[322671209,1713202243541,-500.0,0.00019396,2]
[322671211,1713202243550,-48699.63,0.00019396,2]
[322671213,1713202243559,-48699.63,0.00019396,2]
[322671215,1713202243568,-18991.52,0.00019396,2]
[322671217,1713202243578,-18991.52,0.00019396,2]
[322671219,1713202243587,-8494.29,0.00019396,2]
[322671221,1713202243596,-8494.29,0.00019396,2]
[322671223,1713202243606,-500.0,0.00019396,2]
[322671225,1713202243616,-500.0,0.00019396,2]
[322671227,1713202243625,-800.84,0.00019396,2]
[322671229,1713202243635,-800.84,0.00019396,2]
[322671231,1713202243645,-500.0,0.00019396,2]
[322671232,1713202243654,-500.0,0.00019396,2]
[322671234,1713202243663,-2149.26,0.00019396,2]
[322671236,1713202243672,-2149.26,0.00019396,2]
[322671238,1713202243684,-554.4,0.00019396,2]
[322671239,1713202243695,-1057.81,0.00019396,2]
[322671240,1713202243710,-500.0,0.00019396,2]
[322671241,1713202243719,-1057.81,0.00019396,2]
[322671242,1713202243728,-500.0,0.00019396,2]
[322671243,1713202243738,-3765.66,0.00019396,2]
[322671244,1713202243748,-3765.66,0.00019396,2]
[322671245,1713202243758,-12520.12,0.00019396,2]
[322671246,1713202243767,-12520.12,0.00019396,2]
[322671247,1713202243778,-500.0,0.00019396,2]
[322671248,1713202243788,-500.0,0.00019396,2]
[322671249,1713202243801,-500.0,0.00019396,2]
[322671250,1713202243812,-554.4,0.00019396,2]
[322671251,1713202243821,-500.0,0.00019396,2]
[322671252,1713202243832,-1477.98,0.00019396,2]
[322671253,1713202243842,-1477.98,0.00019396,2]
[322671254,1713202243852,-500.0,0.00019396,2]
[322671255,1713202243863,-500.0,0.00019396,2]
[322671256,1713202243873,-7470.14,0.00019396,2]
[322671257,1713202243883,-7470.14,0.00019396,2]
[322671258,1713202243893,-3813.6,0.00019396,2]
[322671259,1713202243902,-3813.6,0.00019396,2]
[322671260,1713202243912,-917.08,0.00019396,2]
[322671261,1713202243922,-917.08,0.00019396,2]
[322671262,1713202243934,-3495.43,0.00019396,2]
[322671263,1713202243944,-3495.43,0.00019396,2]
[322671264,1713202243954,-1652.52,0.00019396,2]
[322671265,1713202243964,-1652.52,0.00019396,2]
[322671266,1713202243974,-500.0,0.00019396,2]
[322671267,1713202243984,-500.0,0.00019396,2]
[322671268,1713202243993,-1372.26,0.00019397,2]
[322671269,1713202244003,-1372.26,0.00019397,2]
[322671270,1713202244012,-500.0,0.00019397,2]
[322671271,1713202244021,-500.0,0.00019397,2]
[322671272,1713202244031,-500.0,0.00019397,2]
[322671273,1713202244040,-500.0,0.00019397,2]
[322671274,1713202244049,-841.75,0.00019397,2]
[322671275,1713202244058,-841.75,0.00019397,2]
[322671276,1713202244067,-500.0,0.00019397,2]
[322671277,1713202244077,-500.0,0.00019397,2]
[322671278,1713202244086,-1951.9,0.00019397,2]
[322671279,1713202244095,-1951.9,0.00019397,2]
[322671280,1713202244104,-2255.51,0.00019397,2]
[322671281,1713202244114,-2255.51,0.00019397,2]
[322671282,1713202244123,-949.13,0.00019397,2]
[322671283,1713202244132,-949.13,0.00019397,2]
[322671284,1713202244141,-730.52,0.00019397,2]
[322671285,1713202244150,-730.52,0.00019397,2]
[322671286,1713202244159,-500.0,0.00019397,2]
[322671287,1713202244169,-500.0,0.00019397,2]
[322671288,1713202244181,-500.0,0.00019397,2]
[322671289,1713202244191,-500.0,0.00019397,2]
[322671290,1713202244201,-500.0,0.00019397,2]
[322671291,1713202244210,-500.0,0.00019397,2]
[322671292,1713202244220,-1023.0,0.00019397,2]
[322671293,1713202244229,-1023.0,0.00019397,2]
[322671294,1713202244239,-500.0,0.00019397,2]
[322671295,1713202244250,-500.0,0.00019397,2]
[322671296,1713202244259,-2207.63,0.00019397,2]
[322671297,1713202244269,-2207.63,0.00019397,2]
[322671298,1713202244279,-1033.07,0.00019397,2]
[322671299,1713202244288,-1033.07,0.00019397,2]
[322671300,1713202244297,-859.16,0.00019397,2]
[322671301,1713202244306,-859.16,0.00019397,2]
[322671302,1713202244316,-3486.84,0.00019397,2]
[322671303,1713202244325,-3486.84,0.00019397,2]
[322671304,1713202244334,-1831.95,0.00019397,2]
[322671305,1713202244344,-1831.95,0.00019397,2]
[322671306,1713202244353,-728.67,0.00019397,2]
[322671307,1713202244363,-728.67,0.00019397,2]
[322671308,1713202244372,-2614.85,0.00019397,2]
[322671309,1713202244382,-2614.85,0.00019397,2]
[322671310,1713202244391,-1860.75,0.00019397,2]
[322671311,1713202244400,-1860.75,0.00019397,2]
[322671312,1713202244410,-1986.4,0.00019397,2]
[322671313,1713202244419,-1986.4,0.00019397,2]
[322671314,1713202244432,-2061.96,0.00019397,2]
[322671315,1713202244441,-2061.96,0.00019397,2]
[322671316,1713202244451,-500.0,0.00019397,2]
[322671317,1713202244460,-500.0,0.00019397,2]
[322671318,1713202244469,-500.0,0.00019397,2]
[322671319,1713202244479,-500.0,0.00019397,2]
[322671320,1713202244488,-1226.38,0.00019397,2]
[322671321,1713202244498,-1226.38,0.00019397,2]
[322671322,1713202244507,-2009.22,0.00019397,2]
[322671323,1713202244516,-2009.22,0.00019397,2]
[322671324,1713202244525,-500.0,0.00019397,2]
[322671325,1713202244534,-500.0,0.00019397,2]
[322671326,1713202244544,-500.0,0.00019397,2]
[322671327,1713202244554,-877.43,0.00019397,2]
[322671328,1713202244565,-877.43,0.00019397,2]
[322671329,1713202244575,-500.0,0.00019397,2]
[322671330,1713202244584,-513.54,0.00019397,2]
[322671331,1713202244593,-513.54,0.00019397,2]
[322671332,1713202244603,-985.99,0.00019397,2]
[322671333,1713202244612,-985.99,0.00019397,2]
[322671334,1713202244622,-619.98,0.00019397,2]
[322671335,1713202244632,-619.98,0.00019397,2]
[322671336,1713202244642,-755.99,0.00019397,2]
[322671337,1713202244651,-755.99,0.00019397,2]
[322671338,1713202244660,-500.0,0.00019397,2]
[322671339,1713202244669,-500.0,0.00019397,2]
[322671340,1713202244680,-507.21907049,0.00019397,2]
[322671341,1713202244689,-500.0,0.00019397,2]
[322671342,1713202244699,-500.0,0.00019397,2]
[322671343,1713202244708,-500.0,0.00019397,2]
[322671344,1713202244720,-500.0,0.00019397,2]
[322671345,1713202244730,-500.0,0.00019397,2]
[322671346,1713202244741,-500.0,0.00019397,2]
[322671347,1713202244754,-1519.23,0.00019397,2]
[322671348,1713202244763,-1519.23,0.00019397,2]
[322671349,1713202244774,-579.41,0.00019397,2]
[322671350,1713202244785,-579.41,0.00019397,2]
[322671351,1713202244797,-500.0,0.00019397,2]
[322671352,1713202244806,-500.0,0.00019397,2]
[322671353,1713202244815,-520.2453074,0.00019397,2]
[322671354,1713202244824,-672.72,0.00019397,2]
[322671355,1713202244834,-672.72,0.00019397,2]
[322671356,1713202244843,-500.0,0.00019397,2]
[322671357,1713202244852,-500.0,0.00019397,2]
[322671358,1713202244862,-500.0,0.00019397,2]
[322671359,1713202244870,-500.0,0.00019397,2]
[322671360,1713202244881,-591.16,0.00019397,2]
[322671361,1713202244890,-591.16,0.00019397,2]
[322671362,1713202244899,-500.0,0.00019397,2]
[322671363,1713202244908,-500.0,0.00019397,2]
[322671364,1713202244918,-500.0,0.00019397,2]
[322671365,1713202244931,-500.0,0.00019397,2]
[322671366,1713202245154,-500.0,0.00019397,2]
[322671367,1713202245183,-500.0,0.00019397,2]
[322671368,1713202245193,-10771.79,0.00019397,2]